[Event "1000GM Memorial Day NY IM-B 2023"]
[Site "New York"]
[Date "2023.05.29"]
[Round "8.5"]
[White "Nagy, Gabor"]
[Black "Hebbar, Eshaan"]
[Result "1-0"]
[ECO "B37"]
[WhiteElo "2468"]
[BlackElo "1969"]
[Annotator "TA"]
[PlyCount "85"]
[EventDate "2023.05.23"]
[EventType "schev"]
[EventCountry "USA"]
[SourceTitle "playchess.com"]
[Source "ChessBase"]
[SourceQuality "1"]
[TimeControl "5400+30"]

{[%evp 18,85,39,0,38,12,33,39,31,22,47,43,43,51,48,35,48,16,131,70,90,39,38,49,41,40,40,11,96,77,113,93,102,53,57,48,33,58,93,93,95,95,94,68,81,75,58,52,62,29,26,0,107,106,106,106,98,106,293,292,793,782,834,826,1022,989,1273,1256,1206,1184]} 1. c4 {[%emt 0:11:31]} c5 {[%emt 0:00:08]} 2. Nf3 {[%emt 0:00:19][%cal Bg1f3,Bf3d4,Bd4c2][%mdl 32]} Nf6 {[%emt 0:00:12]} 3. Nc3 {[%emt 0:00:16]} Nc6 {[%emt 0:00:10]} 4. d4 {[%emt 0:00:25]} cxd4 {[%emt 0:01:14]} 5. Nxd4 {[%emt 0:01:35]} g6 {[%emt 0:01:03]} 6. e4 {[%emt 0:00:38]} Bg7 {[%emt 0:00:30]} 7. Nc2 {[%emt 0:00:38]} O-O {[%emt 0:00:41]} 8. Be2 {[%emt 0:00:06]} d6 {[%emt 0:00:33]} 9. O-O {[%emt 0:00:10]} Be6 {[%emt 0:02:25]} 10. b3 {[%emt 0:00:39]} Rc8 {[%emt 0:02:01] B37: Sicilian: Maroczy Bind with 5...Bg7, sidelines.} (10... Nd7 $5 {[%cal Rg7c3]} 11. Qd2 a5 $11) 11. Bd2 {[%emt 0:00:35]} a6 {[%emt 0:02:10]} 12. Rc1 {[%emt 0:01:57]} Nd7 {[%emt 0:10:36] White is slightly better.} 13. Kh1 {[%emt 0:00:25]} Nc5 {[%emt 0:04:11]} 14. f3 {[%emt 0:00:09]} f5 {[%emt 0:05:10]} 15. b4 {[%emt 0:02:33]} Nd7 {[%emt 0:00:11]} 16. exf5 {[%emt 0:00:13]} Bxf5 {[%emt 0:12:36] [#]} 17. Nd5 $146 {[%emt 0:00:25]} ({Predecessor:} 17. a3 Bxc2 18. Qxc2 Nd4 19. Qd1 Ne5 20. Bg5 Nf7 21. Be3 e5 22. Nd5 Ng5 23. f4 {1-0 Nagy,G (2527)-Aditya,V (2281) Budapest Vezerkepzo GM 12 2021 (4)}) 17... Nde5 {[%emt 0:06:53]} (17... Bxc2 $11 {keeps the balance.} 18. Qxc2 a5) 18. Bg5 {[%emt 0:05:54]} ({White should try} 18. b5 $16) 18... h6 {[%emt 0:13:22]} 19. Bh4 {[%emt 0:00:36]} ({Better is} 19. Be3 $16) 19... g5 $14 {[%emt 0:00:10]} 20. Bf2 {[%emt 0:00:07]} e6 {[%emt 0:00:23]} 21. Nb6 {[%emt 0:02:21]} Rc7 {[%emt 0:00:07]} 22. Qd2 {[%emt 0:01:49]} Rcf7 {[%emt 0:20:27]} (22... g4 $11) 23. b5 $16 {[%emt 0:00:21]} axb5 {[%emt 0:00:06]} 24. cxb5 {[%emt 0:00:07]} Bxc2 {[%emt 0:03:19]} 25. bxc6 {[%emt 0:03:21]} ({Much weaker is} 25. Qxc2 $6 Ne7 $14) (25. Rxc2 $16 Ne7 26. Rd1) 25... Bg6 $14 {[%emt 0:00:16]} 26. cxb7 {[%emt 0:00:18]} Rxb7 {[%emt 0:00:12]} 27. Rc8 {[%emt 0:00:15]} Qe7 {[%emt 0:00:38]} 28. Rxf8+ {[%emt 0:00:10]} Bxf8 {[%emt 0:00:02]} 29. a4 $1 {[%emt 0:00:21][%cal Ba2a4,Ba4a5][%mdl 32]} Rc7 {[%emt 0:00:34][%cal Bb7c7,Bc7c2,Bc2a2][%mdl 32]} 30. a5 {[%emt 0:02:12]} Rc2 {[%emt 0:00:08]} 31. Qd1 {[%emt 0:00:07]} Qc7 {[%emt 0:01:20]} 32. a6 {[%emt 0:02:38]} Ra2 {[%emt 0:03:55]} 33. Bd4 {[%emt 0:03:09] Bb5 would be deadly.} (33. Bg1 {simplifies} d5 34. Re1 Qc2 35. Qxc2 Bxc2 36. a7) 33... d5 $1 {[%emt 0:05:10]} 34. Qc1 {[%emt 0:10:56]} (34. Na4 $5 {[%cal Ra4c3]} Nc6 35. Nc3 $16) 34... Nc6 {[%emt 0:02:33]} (34... Rc2 $1 $11 {remains equal.} 35. Qd1 Ra2) 35. Bb5 $16 {[%emt 0:05:02] Some like it hot} Rc2 {[%emt 0:00:06] [#]} 36. Bxc6 $1 {[%emt 0:00:11]} Rxc1 {[%emt 0:04:16]} (36... Qxc6 $2 37. Qb1 Qc7 38. Qa1 $18) (36... Rxc6 $2 37. Qxc6 Qxc6 38. a7 $18) 37. Rxc1 {[%emt 0:00:01][%cal Ob6d5] Black must now prevent Nxd5!} Qa7 $2 {[%emt 0:00:38] This move loses the game for Black.} (37... Qf4 $16 {was necessary.} 38. Rd1 Bc2 39. Nxd5 {[%mdl 64] Promotion} exd5) 38. Bb5 $18 {[%emt 0:02:11] Threatens to win with Rc8.} e5 $2 {[%emt 0:00:25]} (38... Be8 39. Bxe8 Qxa6) 39. Bg1 {[%emt 0:00:51] White is clearly winning.} d4 {[%emt 0:00:04] [#]} 40. Nc8 $1 {[%emt 0:00:55]} Qa8 {[%emt 0:00:06]} 41. a7 {[%emt 0:00:35]} Ba3 {[%emt 0:01:11]} 42. Rc7 {[%emt 0:01:19]} d3 {[%emt 0:00:41]} 43. Nb6 {[%emt 0:00:40] Excellently played by Nagy!   Weighted Error Value: White=0.14 (very precise) /Black=0.36} 1-0

[Event "1000GM Memorial Day NY IM-B 2023"]
[Site "New York"]
[Date "2023.05.29"]
[Round "8.6"]
[White "Bortnyk, Mykola"]
[Black "Nakada, Akira"]
[Result "0-1"]
[ECO "B14"]
[WhiteElo "2425"]
[BlackElo "2321"]
[Annotator "TA"]
[PlyCount "56"]
[EventDate "2023.05.23"]
[EventType "schev"]
[EventCountry "USA"]
[SourceTitle "playchess.com"]
[Source "ChessBase"]
[SourceQuality "1"]
[TimeControl "5400+30"]

{[%evp 13,56,31,14,-16,25,-16,-24,-25,-7,-11,39,23,49,44,40,45,48,57,33,17,178,0,21,0,0,0,0,0,58,-81,-81,-58,0,-505,-505,-727,-692,-29994,-29995,-29995,-29996,-29996,-29997,-29997,-29998]} 1. e4 {[%emt 0:24:54]} c6 {[%emt 0:00:14]} 2. d4 {[%emt 0:01:20]} d5 {[%emt 0:00:06]} 3. exd5 {[%emt 0:00:04]} cxd5 {[%emt 0:00:05]} 4. c4 {[%emt 0:00:03]} Nf6 {[%emt 0:00:57]} 5. Nc3 {[%emt 0:00:04]} g6 {[%emt 0:00:04]} 6. Qb3 {[%emt 0:00:11]} Bg7 {[%emt 0:00:47]} 7. cxd5 {[%emt 0:00:21]} O-O {[%emt 0:00:07]} 8. Bd3 {[%emt 0:01:31] B14: Caro-Kann: Panov-Botvinnik Attack with 5...e6 and 5...g6.} Nbd7 {[%emt 0:16:59]} 9. Bg5 {[%emt 0:01:03]} Nb6 {[%emt 0:03:59]} 10. Bxf6 {[%emt 0:03:25] Black has an edge.} Bxf6 {[%emt 0:00:44]} 11. Nf3 {[%emt 0:00:21]} Qd6 {[%emt 0:11:04]} (11... e6 $11) 12. O-O $14 {[%emt 0:05:25]} Bg4 {[%emt 0:01:41] [#]} 13. Ne5 {[%emt 0:01:35]} Bxe5 {[%emt 0:02:01]} 14. dxe5 {[%emt 0:00:04]} Qxe5 {[%emt 0:00:06] [#]} 15. h3 $146 {[%emt 0:06:42]} ({Predecessor:} 15. Rfe1 Qg5 16. Bf1 Rad8 17. a4 Nxd5 18. Nxd5 Rxd5 19. Qxb7 Rd7 20. Qb5 Qd2 21. h3 {0-1 Chos,A (2327)-Sanduleac,V (2466) Evpatoria 2010 (14)}) 15... Bd7 {[%emt 0:05:07]} 16. a4 {[%emt 0:01:20][%cal Ba2a4,Ba4a5][%mdl 32] Threatens to win with a5.} Qg5 $2 {[%emt 0:12:54]} (16... e6 $11 {and Black has nothing to worry.}) 17. Kh1 $2 {[%emt 0:05:53]} (17. h4 $1 $18 {[%cal Rh4g5]} Qxh4 18. a5) 17... Rad8 {[%emt 0:05:22]} 18. a5 {[%emt 0:02:42]} Nxd5 {[%emt 0:02:49]} 19. Qxd5 {[%emt 0:02:07]} (19. Nxd5 $5 Be6 $8 20. Nxe7+ Qxe7 21. Bc4 $11) 19... Bf5 {[%emt 0:00:32]} 20. Qxb7 {[%emt 0:02:46]} Rxd3 {[%emt 0:12:52]} (20... Bxd3 $11 21. Rfe1 Qc5) 21. Qxa7 {[%emt 0:03:17] [#]} (21. Rfd1 $14) 21... Bxh3 $1 $17 {[%emt 0:01:03][%csl Gh3][%cal Rg5g2] Black is more active.} 22. Qb7 {[%emt 0:00:04]} Rfd8 $40 {[%emt 0:00:28][%mdl 128] Black mounts an attack.} 23. Ra4 $2 {[%emt 0:06:12][%mdl 8192] [#]} (23. Rfd1 $11 R8d5 24. Qb8+ Kg7 25. Qh2 Rxd1+ 26. Nxd1) 23... R8d5 $1 $19 {[%emt 0:03:49][%csl Gh3][%cal Rg5g2][%mdl 512]} 24. Qb8+ {[%emt 0:03:12] [#]} (24. Qxd5 Rxd5) 24... Kg7 $1 {[%emt 0:01:35][%csl Gh3][%cal Rg5g2]} 25. Rg1 {[%emt 0:02:04][%cal Oc3d5] [#]} Bxg2+ {[%emt 0:01:25][%mdl 512] Black mates.} 26. Rxg2 {[%emt 0:00:12] [#]} Rd1+ $1 {[%emt 0:00:17][%mdl 512]} 27. Nxd1 {[%emt 0:01:00]} Rxd1+ {[%emt 0:00:04]} 28. Kh2 {[%emt 0:00:04]} Qh5+ {[%emt 0:00:06] An entertaining game by Nakada.   Weighted Error Value: White=0.97/Black=0.23 (precise)} 0-1

[Event "1000GM Memorial Day NY IM-B 2023"]
[Site "New York"]
[Date "2023.05.29"]
[Round "9.1"]
[White "Hebbar, Eshaan"]
[Black "Ansh M Shah"]
[Result "0-1"]
[ECO "E92"]
[WhiteElo "1969"]
[BlackElo "2171"]
[Annotator "TA"]
[PlyCount "84"]
[EventDate "2023.05.23"]
[EventType "schev"]
[EventCountry "USA"]
[SourceTitle "playchess.com"]
[Source "ChessBase"]
[SourceQuality "1"]
[TimeControl "5400+30"]

{[%evp 19,84,31,25,24,60,25,20,18,27,22,32,22,34,35,61,53,64,55,131,137,199,213,199,32,168,0,0,0,67,73,71,62,63,64,177,167,277,255,292,174,145,163,160,131,149,115,141,113,142,14,17,8,7,8,10,4,37,0,0,0,0,-604,-593,-29983,-29983,-29976,-29976]} 1. d4 {[%emt 0:00:12]} Nf6 {[%emt 0:00:07]} 2. c4 {[%emt 0:00:06]} g6 {[%emt 0:00:05]} 3. Nc3 {[%emt 0:00:05]} Bg7 {[%emt 0:00:07]} 4. e4 {[%emt 0:00:06]} d6 {[%emt 0:00:05]} 5. Nf3 {[%emt 0:00:05]} O-O {[%emt 0:00:09]} 6. Be2 {[%emt 0:00:08]} e5 {[%emt 0:00:07]} 7. d5 {[%emt 0:00:05]} a5 {[%emt 0:00:10]} 8. O-O {[%emt 0:00:05]} Na6 {[%emt 0:00:08]} 9. Be3 {[%emt 0:00:06]} Ng4 {[%emt 0:00:13]} 10. Bg5 {[%emt 0:00:08][%cal Be3g5,Bg5h4,Bh4g3,Bg3f2][%mdl 32]} f6 {[%emt 0:00:15]} 11. Bh4 {[%emt 0:00:23] E92: King's Indian: Classical: 6 Be2 e5: 7 dxe5, 7 Be3 and Petrosian System without 7...Nbd7.} Nc5 {[%emt 0:00:27]} 12. h3 {[%emt 0:00:25]} Nh6 {[%emt 0:00:18] [#]} 13. Nd2 $146 {[%emt 0:00:34] The position is equal.} ({Predecessor:} 13. Qd2 Qe8 14. Ne1 g5 15. Bg3 Qg6 16. Rd1 f5 17. exf5 Nxf5 18. Nd3 Nd4 19. Nxc5 dxc5 {0-1 Kaos,K (1872)-Makarova,K (1927) EST-ch (Women) 2005 (1)}) 13... g5 {[%emt 0:00:46]} 14. Bg3 {[%emt 0:00:04]} f5 {[%emt 0:00:13]} 15. f3 {[%emt 0:00:04]} f4 {[%emt 0:01:09]} 16. Bf2 {[%emt 0:00:04]} Nf7 {[%emt 0:00:32]} 17. a3 {[%emt 0:00:08]} h5 {[%emt 0:00:45]} 18. b4 {[%emt 0:00:04]} Na6 {[%emt 0:00:53]} (18... Nd7 $14) 19. c5 $16 {[%emt 0:00:04]} (19. bxa5 Qe7 $16) 19... g4 {[%emt 0:00:41]} (19... Nb8 $16 20. Nc4 axb4 21. axb4 Rxa1 22. Qxa1 g4) 20. fxg4 $18 {[%emt 0:00:25]} (20. hxg4 $6 dxc5 21. bxc5 (21. b5 hxg4 22. fxg4 Nb8 $16) 21... hxg4 22. fxg4 Bf6 $16) 20... hxg4 {[%emt 0:00:10]} 21. hxg4 {[%emt 0:00:26]} ({Only move:} 21. Bxg4 $18 {aiming for c6.} Qg5 22. Be6 (22. bxa5 Bxg4 23. Qxg4 Qxg4 $16)) 21... Nh6 {[%emt 0:01:53]} (21... Bf6 $1 $14) 22. Nc4 $2 {[%emt 0:00:18]} (22. bxa5 Nxc5 23. Bxc5 dxc5 $11) (22. Nb5 $18) 22... Qg5 $11 {[%emt 0:02:19][%cal Rh6g4]} 23. cxd6 {[%emt 0:01:04]} (23. bxa5 Nxg4 24. cxd6 Qh5 25. Bxg4 Bxg4 $17) 23... cxd6 {[%emt 0:01:28]} (23... Nxg4 $11 24. Qe1 (24. bxa5 $2 Qh5 $17) 24... Qh5) 24. Nxd6 $14 {[%emt 0:00:51] And now Nf5 would win.} (24. bxa5 Nxg4 25. Nxd6 Qh5 26. Bxg4 Bxg4 $11) 24... Bxg4 {[%emt 0:00:18]} 25. Bxg4 {[%emt 0:00:56]} (25. bxa5 $2 f3 26. Ra2 (26. Bxa6 $2 fxg2 27. Be2 gxf1=Q+ 28. Kxf1 Qh4 $19) 26... fxe2 27. Rxe2 Qg6 $19) 25... Nxg4 {[%emt 0:00:44]} 26. Qf3 $1 $36 {[%emt 0:00:11][%mdl 2048] White has good play.} Rf6 {[%emt 0:02:49]} (26... Qh5 27. Qh3 (27. bxa5 $2 Qh2#) 27... Qxh3 28. gxh3 Nxf2 29. Kxf2 $16) ({Better is} 26... axb4 $14 27. axb4 Nxb4) 27. Nf5 $1 $18 {[%emt 0:01:33]} Nxf2 {[%emt 0:01:04]} (27... Qh5 $142 28. Rfc1 (28. bxa5 $2 Qh2#) (28. Qh3 Qxh3 29. gxh3 Nh6 $16) 28... axb4 29. axb4 Bf8) 28. Rxf2 {[%emt 0:00:16] d6 would be deadly.} (28. Qxf2 $6 Rd8 29. d6 (29. bxa5 Bf8 $18) 29... Rfxd6 $18) 28... Bf8 {[%emt 0:01:22]} 29. Rb2 {[%emt 0:05:54]} ({But not} 29. bxa5 $6 Bc5 30. d6 Bxd6 $18) (29. d6 $142) 29... axb4 {[%emt 0:04:01]} 30. axb4 {[%emt 0:00:14][%cal Ba3b4,Bb4b5][%mdl 32]} Rd8 {[%emt 0:00:41]} 31. b5 {[%emt 0:00:37]} Nc7 {[%emt 0:01:16][%cal Ba6c7,Bc7e8,Be8d6][%mdl 32]} 32. Kf1 {[%emt 0:04:19][%cal Og2g3]} Ne8 {[%emt 0:00:30] [#]} 33. g3 $1 {[%emt 0:08:59][%mdl 512]} Nd6 {[%emt 0:22:50] [#]} 34. gxf4 {[%emt 0:00:23]} (34. Rg2 $1 $16 Kf7 35. g4 (35. gxf4 Qxf4 36. Qxf4 exf4 $16)) 34... Qxf4 $11 {[%emt 0:00:08]} 35. Qxf4 {[%emt 0:01:06]} exf4 {[%emt 0:00:09]} 36. Rg2+ {[%emt 0:00:27]} Kf7 {[%emt 0:00:20]} 37. Ra7 {[%emt 0:02:12] Strongly threatening Nxd6+.} Rb8 {[%emt 0:02:55]} 38. Nxd6+ {[%emt 0:00:37]} (38. Rg5 $5 {[%cal Rf5d6]} Nxf5 39. exf5 $16 (39. Rxf5 Rxf5 40. exf5 Kf6 $11)) 38... Bxd6 {[%emt 0:00:11]} 39. Rg5 {[%emt 0:02:00] Hoping for e5.} Bc5 {[%emt 0:00:27]} 40. Ra4 {[%emt 0:00:27][%mdl 8192] [#]} (40. e5 $11 Bxa7 41. exf6) 40... Rh8 $1 $19 {[%emt 0:02:58] ( -> ...f3)} 41. Rf5 {[%emt 0:08:39]} Rxf5 {[%emt 0:02:12]} 42. exf5 {[%emt 0:00:02]} f3 {[%emt 0:00:08] Both players deserved the win here.   Weighted Error Value: White=0.66/Black=0.30} 0-1

[Event "1000GM Memorial Day NY IM-B 2023"]
[Site "New York"]
[Date "2023.05.30"]
[Round "9.2"]
[White "Nakada, Akira"]
[Black "Pang, Qi"]
[Result "1-0"]
[ECO "A35"]
[WhiteElo "2321"]
[BlackElo "2165"]
[Annotator "TA"]
[PlyCount "101"]
[EventDate "2023.05.23"]
[EventType "schev"]
[EventCountry "USA"]
[SourceTitle "playchess.com"]
[Source "ChessBase"]
[SourceQuality "1"]
[TimeControl "5400+30"]

{[%evp 17,101,78,89,49,108,101,108,109,113,110,120,120,130,96,129,91,114,64,64,64,72,69,72,79,137,122,147,134,142,88,104,108,174,167,197,186,243,208,250,201,194,208,198,189,211,185,277,264,405,400,389,407,391,397,385,387,386,389,389,372,520,346,586,584,536,516,552,511,502,516,502,492,777,550,1091,1042,1319,1307,1325,1325,1318,1318,1238,1072,1260,1189]} 1. c4 {[%emt 0:00:13]} c5 {[%emt 0:00:29]} 2. Nf3 {[%emt 0:00:17]} Nc6 {[%emt 0:00:18]} 3. Nc3 {[%emt 0:00:24]} g6 {[%emt 0:00:14]} 4. e3 {[%emt 0:00:45]} Bg7 {[%emt 0:00:27]} 5. d4 {[%emt 0:00:16]} cxd4 {[%emt 0:03:05]} 6. exd4 {[%emt 0:00:09]} d6 {[%emt 0:00:11]} 7. d5 {[%emt 0:00:28]} Nb8 {[%emt 0:00:20]} 8. Be2 {[%emt 0:00:53]} Nf6 {[%emt 0:00:08]} 9. O-O {[%emt 0:00:06]} O-O {[%emt 0:00:12]} 10. h3 {[%emt 0:01:16] A35: Symmetrical English: 2 Nc3 Nc6 3 Nf3.} Na6 {[%emt 0:03:45]} (10... e5 $14) 11. Be3 {[%emt 0:02:38]} Nc5 {[%emt 0:01:53]} 12. Nd4 {[%emt 0:07:15] White is better.} a5 {[%emt 0:04:05]} 13. Qc2 {[%emt 0:01:32]} Bd7 {[%emt 0:06:47]} 14. b3 {[%emt 0:01:10] White is more active.} Qc8 {[%emt 0:03:16] [#]} 15. Rfd1 $146 {[%emt 0:02:05]} ({Predecessor:} 15. Kh2 Bf5 16. Nxf5 Qxf5 17. Qxf5 gxf5 18. Rac1 Nfe4 19. Nb5 Rfd8 20. g4 Kh8 21. gxf5 {½-½ Drakoulakos,G (2274)-Trimitzios,P (2086) GRE-ch U16 Porto Rio 2016 (8)}) 15... Re8 {[%emt 0:03:07]} 16. a3 {[%emt 0:04:25]} Bf5 {[%emt 0:02:24]} 17. Qb2 {[%emt 0:04:16]} ({White should play} 17. Nxf5 $16 Qxf5 18. Qxf5 gxf5 19. Rab1) 17... Nfe4 $14 {[%emt 0:09:27]} 18. Nxe4 {[%emt 0:08:25]} Nxe4 {[%emt 0:02:18]} 19. Rac1 {[%emt 0:02:56]} h5 {[%emt 0:09:12]} 20. b4 {[%emt 0:04:08]} h4 {[%emt 0:06:16]} ({Better is} 20... axb4 21. axb4 Qd7) 21. Bd3 {[%emt 0:02:09][%cal Oc4c5]} axb4 {[%emt 0:15:59]} 22. axb4 {[%emt 0:00:38][%cal Oc4c5]} e6 {[%emt 0:02:03]} 23. dxe6 {[%emt 0:08:21]} (23. Qe2 $142) 23... Qxe6 $16 {[%emt 0:01:05]} 24. Qb3 $40 {[%emt 0:02:24][%mdl 128] White attacks with force.} Bxd4 {[%emt 0:04:04]} (24... Qf6 $16 {was worth a try.}) 25. Bxd4 $18 {[%emt 0:00:14]} Ng5 {[%emt 0:00:29][%cal Of5h3] [#]} 26. Bf1 $1 {[%emt 0:01:45] A strong pair of Bishops.} Be4 {[%emt 0:03:39]} (26... Qe7 $142 27. c5 dxc5 28. Bxc5 (28. Rxc5 Ne6 $11) 28... Qe4) 27. f3 {[%emt 0:03:33]} Bf5 {[%emt 0:02:20]} 28. Bf2 {[%emt 0:03:06]} Qe7 {[%emt 0:00:41]} 29. Qb2 {[%emt 0:03:44]} (29. Bxh4 $2 Nxh3+ 30. gxh3 Qxh4 $19) 29... Ne6 {[%emt 0:00:37]} 30. Qd2 {[%emt 0:00:31]} Red8 {[%emt 0:02:31]} 31. Re1 {[%emt 0:35:58]} Ra4 {[%emt 0:00:38]} (31... Kh7 $142 32. Qf4 Rd7 33. Qxh4+ (33. Bxh4 Nxf4 34. Rxe7 Rxe7 $18) 33... Qxh4 34. Bxh4 d5) 32. Qh6 {[%emt 0:00:00]} g5 {[%emt 0:00:35]} (32... Qf8 $142 33. Qxh4 g5) 33. Bd4 {[%emt 0:00:00][%csl Gd4][%cal Rh6h8,Bf2d4,Bd4f6,Bf6e7,Be7d6,Bd6e5][%mdl 96] Pin} f6 {[%emt 0:01:38]} 34. Bxf6 {[%emt 0:00:00]} (34. Qxf6 Qxf6 35. Bxf6 Rd7 $18) 34... Qf8 {[%emt 0:00:03]} 35. Qxf8+ {[%emt 0:00:00]} ({Don't play} 35. Bxg5 Qxh6 36. Bxh6 Rxb4 $18) ({Less strong is} 35. Qh8+ Kf7 $18) 35... Rxf8 {[%emt 0:00:03]} 36. Be7 {[%emt 0:02:30][%csl LRd6,LRf8]} Rfa8 {[%emt 0:00:45]} 37. Bxd6 {[%emt 0:00:00]} Kf7 {[%emt 0:01:17]} 38. Rcd1 {[%emt 0:00:00]} Ra2 {[%emt 0:01:07]} 39. Be5 {[%emt 0:00:00]} Nf8 $2 {[%emt 0:01:22]} (39... Rd8 40. c5 Ra4) 40. c5 {[%emt 0:00:00] White is clearly winning.} Be6 {[%emt 0:00:13]} 41. Bd6 {[%emt 0:00:00]} Rb2 {[%emt 0:01:07]} 42. b5 {[%emt 0:00:00]} Ng6 {[%emt 0:00:35]} 43. c6 {[%emt 0:00:00]} bxc6 {[%emt 0:00:05]} 44. bxc6 {[%emt 0:00:00]} Nf4 {[%emt 0:01:14]} (44... Rb6 $142 45. c7 Rc8) 45. c7 {[%emt 0:00:00] aiming for Bxf4.} Rc2 {[%emt 0:00:19]} 46. Bxf4 {[%emt 0:00:00]} gxf4 {[%emt 0:00:05] [#]} 47. Rxe6 $1 {[%emt 0:00:00][%mdl 64] Threatens to win with Rh6. Promotion} Kxe6 {[%emt 0:00:43]} (47... Rxc7 48. Re4) 48. Rd8 {[%emt 0:00:00]} Raa2 {[%emt 0:00:18]} 49. c8=Q+ {[%emt 0:00:00]} Rxc8 {[%emt 0:00:04]} 50. Rxc8 {[%emt 0:00:00]} Kf5 {[%emt 0:00:05]} 51. Rc5+ {[%emt 0:00:00] Weighted Error Value: White=0.19 (very precise) /Black=0.36} 1-0

[Event "1000GM Memorial Day NY IM-B 2023"]
[Site "New York"]
[Date "2023.05.30"]
[Round "9.3"]
[White "Espinosa, Pedro"]
[Black "Lee, Alice"]
[Result "1-0"]
[ECO "D45"]
[WhiteElo "2229"]
[BlackElo "2391"]
[Annotator "RC"]
[PlyCount "109"]
[EventDate "2023.05.23"]
[EventType "schev"]
[EventCountry "USA"]
[SourceTitle "playchess.com"]
[Source "ChessBase"]
[SourceQuality "1"]
[TimeControl "5400+30"]

1. d4 {[%emt 0:00:02]} d5 {[%emt 0:00:04]} 2. c4 {[%emt 0:00:03]} e6 {[%emt 0:00:05]} 3. Nf3 {[%emt 0:00:24]} c6 {[%emt 0:00:06]} 4. e3 {[%emt 0:00:51]} Nf6 {[%emt 0:00:07]} 5. Nc3 {[%emt 0:00:31]} Nbd7 {[%emt 0:00:05]} 6. Be2 {[%emt 0:01:06]} Bd6 {[%emt 0:00:06]} 7. O-O {[%emt 0:00:38]} O-O {[%emt 0:00:06]} 8. b3 {[%emt 0:00:56]} b6 {[%emt 0:00:12]} 9. Bb2 {[%emt 0:01:03]} Bb7 {[%emt 0:00:12]} 10. Rc1 {[%emt 0:01:36]} Rc8 {[%emt 0:00:19]} 11. Bd3 {[%emt 0:01:06]} Re8 {[%emt 0:00:08]} 12. h3 {[%emt 0:01:56]} h6 {[%emt 0:00:24]} 13. Qe2 {[%emt 0:04:01]} e5 {[%emt 0:01:21]} 14. dxe5 {[%emt 0:02:53]} Nxe5 {[%emt 0:00:09]} 15. cxd5 {[%emt 0:02:26]} cxd5 {[%emt 0:07:45]} 16. Nxe5 {[%emt 0:03:28]} Bxe5 {[%emt 0:00:33]} 17. Nb5 {[%emt 0:01:24]} Bb8 {[%emt 0:07:53]} 18. Qf3 {[%emt 0:05:36]} Ne4 {[%emt 0:07:52]} 19. Qg4 {[%emt 0:02:46]} Qg5 {[%emt 0:11:33]} 20. Qd7 {[%emt 0:11:27]} Qe7 {[%emt 0:05:39]} 21. Qxe7 {[%emt 0:02:19]} Rxe7 {[%emt 0:00:02]} 22. Rxc8+ {[%emt 0:01:51]} Bxc8 {[%emt 0:00:03]} 23. Nd4 {[%emt 0:01:38]} Nc5 {[%emt 0:08:20]} 24. Be2 {[%emt 0:01:42]} Bd7 {[%emt 0:05:57]} 25. Rd1 {[%emt 0:01:16]} Re8 {[%emt 0:08:37]} 26. Bf3 {[%emt 0:01:16]} Ne4 {[%emt 0:01:13]} 27. Ne2 {[%emt 0:02:57]} Be6 {[%emt 0:02:13]} 28. Nd4 {[%emt 0:01:58]} Bd7 {[%emt 0:03:23]} 29. Nc2 {[%emt 0:01:46]} Be5 {[%emt 0:14:36]} 30. Rxd5 {[%emt 0:05:34]} Bxb2 {[%emt 0:00:31]} 31. Rxd7 {[%emt 0:00:13]} Ng5 {[%emt 0:03:40]} 32. Rxa7 {[%emt 0:02:26]} Rc8 {[%emt 0:00:58]} 33. Nd4 {[%emt 0:01:03]} Rc1+ {[%emt 0:06:43]} 34. Kh2 {[%emt 0:00:12]} Rf1 {[%emt 0:01:18]} 35. Kg3 {[%emt 0:01:30]} Bc3 {[%emt 0:00:18]} 36. h4 {[%emt 0:01:15]} Ne6 {[%emt 0:00:45]} 37. Nxe6 {[%emt 0:01:30]} fxe6 {[%emt 0:00:07]} 38. Bg4 {[%emt 0:00:32]} Be5+ {[%emt 0:02:04]} 39. f4 {[%emt 0:00:30]} Bf6 {[%emt 0:00:20]} 40. Bxe6+ {[%emt 0:00:14]} Kf8 {[%emt 0:00:07]} 41. e4 {[%emt 0:01:04]} Bc3 {[%emt 0:00:31]} 42. e5 {[%emt 0:03:33]} Be1+ {[%emt 0:01:08]} 43. Kg4 {[%emt 0:00:01]} Rf2 {[%emt 0:00:24]} 44. Bd5 {[%emt 0:00:55]} Rd2 {[%emt 0:00:16]} 45. Bf3 {[%emt 0:01:37]} Rd4 {[%emt 0:01:39]} 46. h5 {[%emt 0:01:47]} Bd2 {[%emt 0:01:52]} 47. g3 {[%emt 0:00:49]} Rd3 {[%emt 0:00:32]} 48. Rb7 {[%emt 0:01:40]} g6 {[%emt 0:01:14]} 49. hxg6 {[%emt 0:02:53]} h5+ {[%emt 0:00:04]} 50. Kf5 {[%emt 0:00:06]} Rxf3 {[%emt 0:01:09]} 51. Kf6 {[%emt 0:00:15]} Ke8 {[%emt 0:00:15]} 52. g7 {[%emt 0:00:21]} Rxg3 {[%emt 0:00:12]} 53. Rb8+ {[%emt 0:00:11]} Kd7 {[%emt 0:00:05]} 54. g8=Q {[%emt 0:00:08]} Rxg8 {[%emt 0:00:06]} 55. Rxg8 {[%emt 0:00:04]} 1-0